fUST/lending_fUST_20250309
["ID","MTS","AMOUNT","RATE_DAILY","PERIOD"]
[355709322,1741492266803,2007.03510781,0.00022082,7]
[355709323,1741492266929,1645.27530405,0.00022082,7]
[355709329,1741492442668,150.0,0.00022082,7]
[355709330,1741492488817,160.0,0.0003,3]
[355709331,1741492515472,2708.70593039,0.0003,7]
[355709332,1741492639269,223.0,0.0002502,2]
[355709334,1741493235086,-160.0,0.0003,7]
[355709335,1741493235108,-7.14658092,0.00035071,2]
[355709336,1741493235137,-2216.15890529,0.00035071,2]
[355709337,1741493239119,-694.35568729,0.00035071,2]
[355709338,1741493239144,-172.657055,0.0003589,2]
[355709339,1741493239169,-1755.1065824,0.00037599,2]
[355709340,1741493239199,-400.0,0.00038607,5]
[355709341,1741493239227,-500.0,0.00038608,2]
[355709342,1741493239251,-500.0,0.00038608,15]
[355709343,1741493239276,-500.0,0.00038608,15]
[355709344,1741493239299,-196.4719519,0.00038608,15]
[355709348,1741493348113,-500.0,0.00038056,2]
[355709349,1741493355082,-400.0,0.00038607,5]
[355709350,1741493355104,-522.39296613,0.00038608,2]
[355709351,1741493355125,-168.0,0.00038608,2]
[355709352,1741493355146,-303.5280481,0.00038608,15]
[355709353,1741493355168,-614.54295302,0.00038608,15]
[355709354,1741493355190,-562.86189605,0.00038608,15]
[355709355,1741493355212,-500.0,0.00038608,15]
[355709356,1741493355359,-500.0,0.00038608,2]
[355709357,1741493355383,-500.0,0.00038608,2]
[355709358,1741493355410,-500.0,0.00038608,2]
[355709359,1741493355434,-500.0,0.00038608,2]
[355709360,1741493355457,-500.0,0.00038608,2]
[355709361,1741493355479,-500.0,0.00038608,2]
[355709362,1741493355503,-500.0,0.00038608,2]
[355709363,1741493355526,-500.0,0.00038608,2]
[355709364,1741493355549,-500.0,0.00038608,2]
[355709365,1741493355572,-500.0,0.00038608,2]
[355709366,1741493355595,-500.0,0.00038608,2]
[355709367,1741493355618,-500.0,0.00038608,2]
[355709368,1741493355641,-500.0,0.00038608,2]
[355709369,1741493355664,-500.0,0.00038608,2]
[355709370,1741493355688,-500.0,0.00038608,2]
[355709371,1741493355710,-500.0,0.00038608,2]
[355709372,1741493355733,-500.0,0.00038608,2]
[355709373,1741493355755,-500.0,0.00038608,2]
[355709374,1741493355778,-500.0,0.00038608,2]
[355709375,1741493355801,-500.0,0.00038608,2]
[355709376,1741493355823,-500.0,0.00038608,2]
[355709377,1741493355845,-500.0,0.00038608,2]
[355709378,1741493355867,-500.0,0.00038608,2]
[355709379,1741493355889,-500.0,0.00038608,2]
[355709380,1741493355911,-500.0,0.00038608,2]
[355709381,1741493355932,-500.0,0.00038608,2]
[355709382,1741493355955,-500.0,0.00038608,2]
[355709383,1741493355977,-500.0,0.00038608,2]
[355709384,1741493355998,-500.0,0.00038608,2]
[355709385,1741493356020,-500.0,0.00038608,2]
[355709386,1741493356044,-500.0,0.00038608,2]
[355709387,1741493356066,-500.0,0.00038608,2]
[355709388,1741493356089,-500.0,0.00038608,2]
[355709389,1741493356112,-500.0,0.00038608,2]
[355709390,1741493356136,-500.0,0.00038608,2]
[355709391,1741493356160,-500.0,0.00038608,2]
[355709392,1741493356184,-500.0,0.00038608,2]
[355709393,1741493356209,-500.0,0.00038608,2]
[355709394,1741493356232,-500.0,0.00038608,2]
[355709395,1741493356254,-500.0,0.00038608,2]
[355709396,1741493356278,-500.0,0.00038608,2]
[355709397,1741493356302,-500.0,0.00038608,2]
[355709398,1741493356326,-500.0,0.00038608,2]
[355709399,1741493356349,-500.0,0.00038608,2]
[355709400,1741493356374,-500.0,0.00038608,2]
[355709401,1741493356401,-500.0,0.00038608,2]
[355709402,1741493356426,-239.39365946,0.00038608,2]
[355709403,1741493356452,-500.0,0.00038608,2]
[355709404,1741493356477,-500.0,0.00038608,2]
[355709405,1741493356502,-500.0,0.00038608,2]
[355709406,1741493356525,-500.0,0.00038608,2]
[355709407,1741493356549,-267.2963244,0.00038608,2]
[355709408,1741493356596,-276.69434711,0.00038608,2]
[355709409,1741493356623,-500.0,0.00038608,2]
[355709410,1741493356649,-500.0,0.00038608,2]
[355709411,1741493356673,-223.93936595,0.00038608,2]
[355709412,1741493356699,-500.0,0.00038608,2]
[355709413,1741493356723,-500.0,0.00038608,2]
[355709414,1741493356748,-500.0,0.00038608,2]
[355709415,1741493356772,-500.0,0.00038608,2]
[355709416,1741493356795,-500.0,0.00038608,15]
[355709417,1741493356817,-24900.0,0.00038609,2]
[355709418,1741493356839,-500.0,0.00038673,5]
[355709419,1741493356861,-692.30010456,0.000389,8]
[355709420,1741493356882,-250.0,0.00039002,2]
[355709421,1741493356904,-227.424342,0.00039164,2]
[355709422,1741493356925,-405.3171447,0.00039314,2]
[355709423,1741493356948,-10000.0,0.00039489,2]
[355709424,1741493356969,-380.0,0.00040641,120]
[355709425,1741493356990,-1037.510911,0.00040878,2]
[355709426,1741493357098,-342.0,0.0004124,5]
[355709427,1741493411154,500.0,0.00038608,2]
[355709428,1741493417466,234.949217,0.00038607,15]
[355709429,1741493417498,500.0,0.00038607,2]
[355709430,1741493417590,500.0,0.00038607,2]
[355709431,1741493417633,500.0,0.00038607,2]
[355709432,1741493417761,500.0,0.00038607,2]
[355709433,1741493417809,500.0,0.00038607,2]
[355709434,1741493423231,677.80618782,0.00037389,2]
[355709435,1741493423395,677.80618782,0.00042389,2]
[355709474,1741493432407,-311.85449755,0.00043652,120]
[355709476,1741493432422,-134.89550245,0.00043738,2]
[355709483,1741493432515,-281.77116422,0.00043738,2]
[355709484,1741493432525,-1635.36478658,0.00043752,2]
[355709485,1741493432538,-4807.28021245,0.00043752,2]
[355709486,1741493432548,-160.0,0.00043752,2]
[355709487,1741493432558,-669.22343435,0.000439,9]
[355709488,1741493432568,-185.68968042,0.000448,2]
[355709489,1741493432579,-160.0,0.00045547,2]
[355709491,1741493432590,-3149.13732895,0.00045555,2]
[355709493,1741493432600,-3149.13732895,0.00045555,3]
[355709495,1741493432611,-156.13647147,0.0004587,2]
[355709497,1741493432620,-187.0,0.0004596,2]
[355709499,1741493432630,-8632.9846872,0.0004596,4]
[355709501,1741493432640,-700.1602768,0.00045969,7]
[355709503,1741493432650,-805.8,0.0004597,30]
[355709505,1741493432660,-30089.88566912,0.0004597,4]
[355709517,1741493432773,-18.57184232,0.0004597,4]
[355709545,1741493438981,-166.57,0.0004597,10]
[355709546,1741493438990,-4423.48123736,0.0004597,4]
[355709547,1741493439000,-500.0,0.00045973,10]
[355709548,1741493439010,-506.25357674,0.00045973,10]
[355709549,1741493439019,-150.0,0.00045979,30]
[355709550,1741493439028,-490.69515159,0.00045979,120]
[355709551,1741493439038,-465.84784893,0.00045979,31]
[355709552,1741493439047,-1672.15218538,0.0004598,2]
[355709612,1741493443362,-1.18728774,0.0004598,2]
[355709613,1741493443374,-534.6690953,0.0004598,2]
[355709656,1741493446341,-67.54036107,0.0004598,2]
[355709675,1741493856697,27355.5860552,4.58e-05,8]
[355709678,1741494338113,-170.108602,0.0003589,2]
[355709679,1741494338135,-393.81182658,0.00037823,2]
[355709680,1741494426093,-388.61397656,0.00031688,2]
[355709681,1741494426115,-336.94509742,0.00037823,2]
[355709682,1741494426138,-191.6480052,0.00038792,2]
[355709683,1741494426160,-400.0,0.0003943,5]
[355709684,1741494426183,-269.95137238,0.00039431,15]
[355709685,1741494428184,-230.04862762,0.00039431,15]
[355709686,1741494428208,-500.0,0.00039431,2]
[355709687,1741494428233,-500.0,0.00039431,2]
[355709688,1741494428259,-500.0,0.00039431,2]
[355709689,1741494428284,-500.0,0.00039431,2]
[355709690,1741494428307,-500.0,0.00039431,15]
[355709691,1741494428332,-500.0,0.00039431,2]
[355709692,1741494428356,-197.20946009,0.00039431,2]
[355709693,1741494430081,-302.79053991,0.00039431,2]
[355709694,1741494430103,-500.0,0.00039431,15]
[355709695,1741494430129,-500.0,0.00039431,2]
[355709696,1741494430151,-485.28545536,0.00039431,15]
[355709697,1741494434084,-14.71454464,0.00039431,15]
[355709698,1741494434111,-500.0,0.00039431,2]
[355709699,1741494434137,-500.0,0.00039431,2]
[355709700,1741494434161,-500.0,0.00039431,15]
[355709701,1741494434187,-500.0,0.00039431,2]
[355709702,1741494434211,-507.98297676,0.00039431,15]
[355709703,1741494434238,-500.0,0.00039431,2]
[355709704,1741494434263,-500.0,0.00039431,2]
[355709705,1741494434288,-500.0,0.00039431,2]
[355709706,1741494434312,-500.0,0.00039431,2]
[355709707,1741494434337,-379.76182461,0.00039431,2]
[355709708,1741494443074,-120.23817539,0.00039431,2]
[355709709,1741494443099,-400.46825484,0.00039431,2]
[355709710,1741494443123,-500.0,0.00039431,2]
[355709711,1741494443164,-68.02055577,0.00039431,2]
[355709712,1741494450116,-977.6233773,0.00038294,2]
[355709713,1741494450143,-61.09651076,0.00039431,2]
[355709714,1741494452232,262.8776519,0.00025,7]
[355709716,1741494545139,-6237.709814,0.00037279,2]
[355709717,1741494545160,-1002.40982123,0.000378,2]
[355709718,1741494545186,-370.88293347,0.00039431,2]
[355709719,1741494545210,-500.0,0.00039431,2]
[355709720,1741494545234,-433.82664301,0.00039431,2]
[355709721,1741494548108,-66.17335699,0.00039431,2]
[355709722,1741494548140,-500.0,0.00039431,2]
[355709723,1741494548166,-500.0,0.00039431,2]
[355709724,1741494548192,-500.0,0.00039431,2]
[355709725,1741494548217,-500.0,0.00039431,2]
[355709726,1741494548241,-500.0,0.00039431,2]
[355709727,1741494548266,-177.40714412,0.00039431,2]
[355709728,1741494548288,-500.0,0.00039431,2]
[355709729,1741494548311,-500.0,0.00039431,2]
[355709730,1741494548334,-500.0,0.00039431,15]
[355709731,1741494548356,-500.0,0.00039431,15]
[355709732,1741494548378,-500.0,0.00039431,15]
[355709733,1741494548400,-498.586512,0.00039431,15]
[355709734,1741494548422,-15428.7482517,0.00039432,2]
[355709735,1741494548558,-289.87699129,0.00039474,2]
[355709736,1741494548581,-246.73114356,0.0003988,2]
[355709737,1741494549087,-453.26885644,0.0003988,2]
[355709738,1741494549109,-747.4154565,0.000399,8]
[355709739,1741494549133,-320.60963678,0.0003996,120]
[355709740,1741494549154,-3246.47488755,0.0004,60]
[355709741,1741494549175,-2560.8589,0.0004,120]
[355709742,1741494549196,-170.82014993,0.0004,120]
[355709743,1741494549217,-29.47025083,0.0004006,14]
[355709744,1741494563108,-128.18049917,0.0004006,14]
[355709745,1741494563130,-167.0055,0.0004006,14]
[355709746,1741494563152,-167.900701,0.00040267,2]
[355709747,1741494563175,-250.0,0.00040456,2]
[355709748,1741494563198,-167.900701,0.00041366,2]
[355709749,1741494563219,-181.64045994,0.00041487,25]
[355709758,1741494614703,500.0,0.00039431,2]
[355709759,1741494628954,1024.92900288,0.000378,2]
[355709854,1741494638288,-167.900701,0.00042464,2]
[355709856,1741494638298,-319.03391643,0.000428,2]
[355709862,1741494638348,-705.89508645,0.000428,2]
[355709864,1741494638358,-722.50160795,0.000429,9]
[355709866,1741494638367,-550.0,0.00042999,5]
[355709868,1741494638377,-2271.6033056,0.00043,5]
[355709925,1741494638943,-62.6578254,0.00043,5]
[355709951,1741494639191,-176.35093906,0.00043,5]
[355709953,1741494639205,-4528.47051793,0.00043,5]
[355709954,1741494639215,-445.20447071,0.00043155,2]
[355709956,1741494639225,-167.900701,0.00043562,2]
[355709958,1741494639234,-167.900701,0.0004466,2]
[355709960,1741494639244,-320.60963674,0.00044695,120]
[355709962,1741494639254,-500.0,0.00044999,2]
[355709964,1741494639263,-334.22033075,0.00044999,120]
[355709966,1741494639273,-500.0,0.00044999,2]
[355709968,1741494639284,-10000.0,0.00045,5]
[355709970,1741494639293,-30000.0,0.000452,5]
[355709972,1741494639303,-244.96381086,0.00045461,2]
[355709974,1741494639312,-649.8585281,0.00045561,2]
[355709976,1741494639322,-170.0,0.00045722,5]
[355709978,1741494639332,-167.900701,0.00045758,2]
[355709980,1741494639342,-158.738746,0.0004576,2]
[355709982,1741494639351,-1100.89115659,0.0004579,4]
[355710027,1741494639815,358.75,0.00041365,2]
[355710171,1741494640557,-244.96381085,0.00045621,2]
[355710174,1741494640567,-5853.33386576,0.0004579,4]
[355710177,1741494640578,-240.71470922,0.00045799,120]
[355710180,1741494640588,-500.0,0.00045799,120]
[355710183,1741494640599,-498.5,0.000458,8]
[355710186,1741494640608,-30000.0,0.000458,5]
[355710189,1741494640618,-158.73874598,0.0004583,2]
[355710192,1741494640627,-832.9,0.0004585,10]
[355710195,1741494640637,-600.0,0.00045852,2]
[355710199,1741494640646,-6954.22502235,0.0004586,4]
[355710202,1741494640656,-6954.22502235,0.0004586,4]
[355710205,1741494640667,-34771.1251117,0.0004587,4]
[355710207,1741494640676,-501.74219085,0.00045873,10]
[355710210,1741494640685,-500.0,0.00045873,10]
[355710214,1741494640695,-500.0,0.00045873,10]
[355710217,1741494640705,-499.98,0.00045879,120]
[355710219,1741494640714,-150.0,0.00045879,30]
[355710221,1741494640723,-3355.0151982,0.00045879,45]
[355710224,1741494640733,-27515.23820498,0.0004588,45]
[355710246,1741494640844,-222000.0,0.0004588,2]
[355710249,1741494640859,-151.0,0.0004588,120]
[355710252,1741494640869,-151.0,0.0004588,120]
[355710255,1741494640879,-151.0,0.0004588,120]
[355710259,1741494640891,-151.0,0.0004588,120]
[355710262,1741494640900,-151.0,0.0004588,120]
[355710265,1741494640910,-151.0,0.0004588,120]
[355710268,1741494640919,-151.0,0.0004588,120]
[355710271,1741494640929,-151.0,0.0004588,120]
[355710274,1741494640939,-151.0,0.0004588,120]
[355710277,1741494640948,-151.0,0.0004588,120]
[355710280,1741494640959,-151.0,0.0004588,120]
[355710283,1741494640969,-151.0,0.0004588,120]
[355710286,1741494640979,-151.0,0.0004588,120]
[355710289,1741494640989,-151.0,0.0004588,120]
[355710294,1741494641007,-151.0,0.0004588,120]
[355710299,1741494641023,-151.0,0.0004588,120]
[355710302,1741494641033,-151.0,0.0004588,120]
[355710305,1741494641043,-185.968904,0.0004588,120]
[355710308,1741494641053,-166.78595817,0.0004588,2]
[355710311,1741494641064,-158.73874598,0.000459,2]
[355710314,1741494641075,-682.06585796,0.00045907,2]
[355710317,1741494641085,-160.0,0.00045917,2]
[355710320,1741494641096,-8289.94318733,0.00045917,2]
[355710585,1741494643530,-164.0,0.00045,90]
[355710587,1741494643541,-7265.73080964,0.00045917,2]
[355710589,1741494643550,-416.66666667,0.00045934,2]
[355710591,1741494643560,-560.89160969,0.0004597,4]
[355710843,1741494646389,-244.96381085,0.0004578,2]
[355710845,1741494646399,-3738.37808195,0.0004597,4]
[355710943,1741494647330,61.16664367,0.00040802,2]
[355711013,1741494711935,224.4182356,0.00038285,2]
[355711048,1741495597122,-206.90415627,0.00028331,2]
[355711049,1741495637095,-156.94584267,0.00028331,2]
[355711050,1741495642111,-1777.36868184,0.00028331,2]
[355711051,1741495644087,-3908.47001557,0.00028331,2]
[355711052,1741495646221,-1513.983401,0.00028331,2]
[355711058,1741495653072,-956.53366421,0.00028331,2]
[355711059,1741495654085,-234.04690886,0.00028331,2]
[355711060,1741495746103,-1245.74732958,0.00028331,2]
[355711061,1741495746126,-3759.0996488,0.00028498,2]
[355711062,1741495746149,-3734.70837954,0.0002903,2]
[355711063,1741495746175,-500.0,0.00029129,2]
[355711064,1741495746199,-500.0,0.00029129,2]
[355711065,1741495746224,-500.0,0.00029129,2]
[355711066,1741495746246,-500.0,0.00029129,2]
[355711067,1741495746269,-500.0,0.00029129,2]
[355711068,1741495746292,-317.5144402,0.00029129,2]
[355711069,1741495746314,-518.45426969,0.00029129,2]
[355711070,1741495746338,-500.0,0.00029129,2]
[355711071,1741495746360,-500.0,0.00029129,2]
[355711072,1741495746383,-270.59687822,0.00029129,2]
[355711073,1741495746405,-173.24314691,0.00029129,2]
[355711074,1741495746429,-500.0,0.00029129,2]
[355711075,1741495746452,-500.0,0.00029129,2]
[355711076,1741495746475,-500.0,0.00029129,2]
[355711077,1741495746498,-500.0,0.00029129,2]
[355711078,1741495746522,-500.0,0.00029129,2]
[355711079,1741495746546,-500.0,0.00029129,2]
[355711080,1741495746571,-500.0,0.00029129,2]
[355711081,1741495746595,-500.0,0.00029129,2]
[355711082,1741495746630,-500.0,0.00029129,2]
[355711083,1741495746659,-500.0,0.00029129,2]
[355711084,1741495746684,-500.0,0.00029129,2]
[355711085,1741495746709,-500.0,0.00029129,2]
[355711086,1741495746734,-500.0,0.00029129,2]
[355711087,1741495746758,-500.0,0.00029129,2]
[355711088,1741495746783,-500.0,0.00029129,2]
[355711089,1741495746809,-500.0,0.00029129,2]
[355711090,1741495746837,-500.0,0.00029129,2]
[355711091,1741495746860,-500.0,0.00029129,2]
[355711092,1741495746883,-500.0,0.00029129,2]
[355711093,1741495746907,-500.0,0.00029129,2]
[355711094,1741495746931,-500.0,0.00029129,2]
[355711095,1741495746955,-500.0,0.00029129,2]
[355711096,1741495746980,-500.0,0.00029129,2]
[355711097,1741495747005,-500.0,0.00029129,2]
[355711098,1741495747030,-500.0,0.00029129,2]
[355711099,1741495747055,-500.0,0.00029129,2]
[355711100,1741495747079,-500.0,0.00029129,2]
[355711101,1741495747232,-500.0,0.00029129,2]
[355711102,1741495747262,-500.0,0.00029129,2]
[355711103,1741495747286,-500.0,0.00029129,2]
[355711104,1741495747314,-500.0,0.00029129,2]
[355711105,1741495747338,-500.0,0.00029129,2]
[355711106,1741495747362,-500.0,0.00029129,2]
[355711107,1741495747386,-500.0,0.00029129,2]
[355711108,1741495747410,-500.0,0.00029129,2]
[355711109,1741495747436,-500.0,0.00029129,2]
[355711110,1741495747460,-331.47943637,0.00029129,2]
[355711111,1741495747484,-500.0,0.00029129,2]
[355711112,1741495747508,-500.0,0.00029129,2]
[355711113,1741495747531,-500.0,0.00029129,2]
[355711114,1741495747554,-500.0,0.00029129,2]
[355711115,1741495747578,-481.42677725,0.0002913,2]
[355711116,1741495747599,-204.0,0.00029131,7]
[355711117,1741495747620,-150.0,0.00029131,7]
[355711118,1741495747641,-818.0,0.00029131,7]
[355711119,1741495747661,-409.0,0.00029131,7]
[355711120,1741495747683,-1592.0,0.00029131,7]
[355711121,1741495747704,-1033.0,0.00029131,7]
[355711122,1741495747725,-2526.0,0.00029131,7]
[355711123,1741495747747,-1636.0,0.00029131,7]
[355711124,1741495747767,-500.0,0.000292,5]
[355711125,1741495747789,-500.0,0.000292,5]
[355711126,1741495747810,-219.75382492,0.000292,5]
[355711127,1741495747831,-181.66,0.000292,2]
[355711128,1741495747853,-166.1564816,0.00029457,5]
[355711129,1741495747875,-779.96732294,0.000299,5]
[355711130,1741495747897,-548.26902976,0.00030059,2]
[355711131,1741495747920,-518.50029645,0.00030059,2]
[355711132,1741495747941,-24899.6593006,0.0003006,2]
[355711133,1741495747962,-500.0,0.00030073,5]
[355711134,1741495747983,-277.04331406,0.00030073,2]
[355711135,1741495748004,-162.28783326,0.00030073,5]
[355711136,1741495748025,-500.0,0.00030073,2]
[355711137,1741495748047,-502.44637538,0.00030073,5]
[355711138,1741495748068,-260.31076706,0.00030073,5]
[355711139,1741495748089,-500.0,0.00030073,3]
[355711140,1741495748110,-160.78436985,0.00030073,5]
[355711141,1741495748132,-500.0,0.00030073,5]
[355711142,1741495748153,-504.85966361,0.00030073,5]
[355711143,1741495748180,-500.0,0.000301,2]
[355711144,1741495748202,-204.0416411,0.00030991,2]
[355711145,1741495748224,-2176.23591003,0.00031384,2]
[355711146,1741495748246,-274.00214492,0.000338,5]
[355711147,1741495748267,-505.90606582,0.000338,5]
[355711148,1741495748292,-634.91320948,0.00034679,5]
[355711149,1741495748325,-460.67076102,0.00035552,3]
[355711150,1741495748353,-1000.0,0.00035552,5]
[355711151,1741495748380,-240.22677918,0.00035579,2]
[355711152,1741495748408,-170.108602,0.0003589,2]
[355711153,1741495748437,-369.35778251,0.000362,98]
[355711154,1741495748466,-299.24236341,0.00036423,99]
[355711155,1741495748521,-500.0,0.00029129,2]
[355711156,1741495748550,-214.93854082,0.00029129,2]
[355711157,1741495748580,-70.11541907,0.00036423,99]
[355711158,1741495748607,-3734.70837952,0.00037583,2]
[355711159,1741495748631,-573.14784863,0.00038815,2]
[355711160,1741495750832,600.0,0.00033762,2]
[355711161,1741495751456,622.2,0.00033817,2]
[355711162,1741495752266,645.2214,0.00033872,2]
[355711163,1741495752931,669.0945918,0.00033927,2]
[355711164,1741495753596,912.33813126,0.00033982,2]
[355711165,1741495755399,156.913141,0.00037989,5]
[355711166,1741495756069,500.0,0.00029129,2]
[355711167,1741495756106,500.0,0.00029129,2]
[355711168,1741495756136,500.0,0.00029129,2]
[355711169,1741495756167,500.0,0.00029129,2]
[355711170,1741495756329,500.0,0.00029129,2]
[355711171,1741495756359,500.0,0.00029129,2]
[355711172,1741495756388,500.0,0.00029129,2]
[355711173,1741495756421,350.0,0.00029129,2]
[355711174,1741495756449,500.0,0.00029129,2]
[355711175,1741495756483,500.0,0.00029129,2]
[355711176,1741495756511,500.0,0.00029129,2]
[355711177,1741495757084,-2341.69363833,0.00039605,72]
[355711182,1741495763080,-1010.74162383,0.00039605,72]
[355711185,1741495769100,-1845.06250886,0.00039605,72]
[355711186,1741495770118,-3928.52498763,0.00039605,72]
[355711187,1741495770139,-500.0,0.00039786,2]
[355711188,1741495771089,-3003.7951846,0.00040021,2]
[355711189,1741495771111,-21135.9359413,0.00040792,3]
[355711190,1741495771133,-564.06031833,0.00040802,2]
[355711191,1741495771154,-163.0,0.00041,14]
[355711192,1741495771177,-534.32056505,0.00043051,2]
[355711193,1741495771198,-164.0,0.00043151,90]
[355711194,1741495771225,753.96841204,0.000399,8]
[355711200,1741495820624,500.0,0.00029129,2]
[355711201,1741495820671,318.70544871,0.00029129,2]
[355711202,1741495820695,181.29455129,0.00029129,2]
[355711235,1741495832605,-534.32056504,0.00043588,2]
[355711237,1741495832615,-913.79924969,0.0004378,2]
[355711251,1741495832735,-2096.74140247,0.000438,2]
[355711253,1741495832746,-369.35778248,0.00043915,120]
[355711255,1741495832756,-534.32056504,0.00044126,2]
[355711257,1741495832766,-534.32056504,0.00044663,2]
[355711259,1741495832777,-156.913141,0.00044786,2]
[355711261,1741495832786,-500.0,0.00044794,120]
[355711263,1741495832796,-1000.0,0.00045,30]
[355711265,1741495832806,-152.0,0.00045,90]
[355711267,1741495832816,-170.0,0.00045,90]
[355711269,1741495832825,-490.68,0.0004518,30]
[355711271,1741495832835,-490.69,0.0004518,30]
[355711273,1741495832844,-606.19,0.0004518,10]
[355711275,1741495832854,-505.16,0.0004518,10]
[355711277,1741495832864,-1018.49,0.00045189,7]
[355711279,1741495832874,-1018.49,0.00045189,7]
[355711281,1741495832883,-1018.49,0.00045189,7]
[355711283,1741495832893,-1018.49,0.00045189,7]
[355711285,1741495832903,-1018.49,0.00045189,7]
[355711287,1741495832914,-1018.49,0.00045189,7]
[355711289,1741495832923,-1018.49,0.00045189,7]
[355711291,1741495832932,-1018.49,0.00045189,7]
[355711293,1741495832943,-1018.49,0.00045189,7]
[355711295,1741495832953,-1018.49,0.00045189,7]
[355711297,1741495832963,-362.95020752,0.00045189,120]
[355711299,1741495832972,-383.78832083,0.00045189,31]
[355711301,1741495832983,-1421.34345336,0.0004519,2]
[355711303,1741495832992,-9384.725916,0.0004519,3]
[355711305,1741495833004,-59961.50387576,0.0004519,3]
[355711383,1741495838525,-609.19949979,0.0004309,2]
[355711384,1741495838535,-500.0,0.00045188,2]
[355711385,1741495838547,-241.47146077,0.00045188,2]
[355711386,1741495838556,-500.0,0.00045188,2]
[355711387,1741495838567,-500.0,0.00045188,2]
[355711388,1741495838576,-500.0,0.00045188,2]
[355711389,1741495838587,-500.0,0.00045188,2]
[355711390,1741495838597,-99741.25773824,0.0004519,3]
[355711391,1741495838607,-160.0,0.0004519,3]
[355711392,1741495838616,-32362.90822124,0.000452,45]
[355711393,1741495838626,-23032.61110777,0.000452,45]
[355711394,1741495838636,-534.32056504,0.000452,2]
[355711395,1741495838646,-9800.66971521,0.000452,2]
[355711396,1741495838656,-403888.0,0.000452,120]
[355711397,1741495838666,-21135.9359413,0.00045252,3]
[355711398,1741495838676,-501.15957283,0.00045273,10]
[355711399,1741495838685,-500.0,0.00045273,10]
[355711400,1741495838695,-500.0,0.00045273,10]
[355711401,1741495838705,-21135.9359413,0.0004528,3]
[355711402,1741495838715,-999.0,0.00045288,120]
[355711403,1741495838724,-500.0,0.00045289,120]
[355711404,1741495838733,-15555.67399697,0.0004529,3]
[355711405,1741495838743,-151.0,0.0004529,120]
[355711406,1741495838752,-151.0,0.0004529,120]
[355711407,1741495838762,-151.0,0.0004529,120]
[355711408,1741495838772,-151.0,0.0004529,120]
[355711409,1741495838782,-151.0,0.0004529,120]
[355711410,1741495838791,-151.0,0.0004529,120]
[355711411,1741495838801,-186.510752,0.0004529,120]
[355711412,1741495838810,-2307023.19,0.000453,90]
[355711413,1741495838820,-151.0,0.000453,23]
[355711414,1741495838830,-151.0,0.000453,28]
[355711415,1741495838839,-281.856961,0.000453,120]
[355711416,1741495838851,-157.65103,0.000453,120]
[355711417,1741495838860,-281.856961,0.000453,120]
[355711418,1741495838870,-641.450401,0.000453,120]
[355711419,1741495838880,-641.450401,0.000453,120]
[355711420,1741495838890,-452.6206638,0.00045542,2]
[355711421,1741495838900,-12864.0303951,0.000456,120]
[355711422,1741495838910,-15555.67399697,0.00045659,2]
[355711423,1741495838919,-416.66666667,0.00045662,2]
[355711424,1741495838929,-504.26884556,0.00045673,10]
[355711425,1741495838938,-503.61540896,0.00045673,10]
[355711426,1741495838948,-501.36581249,0.00045673,10]
[355711427,1741495838957,-500.0,0.00045673,10]
[355711428,1741495838968,-500.0,0.00045673,10]
[355711429,1741495838978,-500.0,0.00045673,10]